fUSD/lending_fUSD_20260203
["ID","MTS","AMOUNT","RATE_DAILY","PERIOD"]
[404377920,1770085852474,-500.0,0.00013698,2]
[404377921,1770085852484,-500.0,0.00013698,2]
[404377922,1770085852493,-500.0,0.00013698,2]
[404377923,1770085852503,-370.66846467,0.00013698,2]
[404377924,1770085852512,-544.31,0.00013698,2]
[404377925,1770085852521,-544.31,0.00013698,2]
[404377926,1770085852531,-544.31,0.00013698,2]
[404377927,1770085852540,-544.31,0.00013698,2]
[404377928,1770085852550,-544.31,0.00013698,2]
[404377929,1770085852559,-544.31,0.00013698,2]
[404377930,1770085852568,-544.31,0.00013698,2]
[404377931,1770085852578,-544.31,0.00013698,2]
[404377932,1770085852586,-544.31,0.00013698,2]
[404377933,1770085852596,-544.31,0.00013698,2]
[404377934,1770085852605,-544.31,0.00013698,2]
[404377935,1770085852614,-544.31,0.00013698,2]
[404377936,1770085852623,-544.31,0.00013698,2]
[404377937,1770085852632,-544.31,0.00013698,2]
[404377938,1770085852642,-544.31,0.00013698,2]
[404377939,1770085852651,-544.31,0.00013698,2]
[404377940,1770085852660,-544.31,0.00013698,2]
[404377941,1770085852669,-544.31,0.00013698,2]
[404377942,1770085852678,-544.31,0.00013698,2]
[404377943,1770085852688,-544.31,0.00013698,2]
[404377944,1770085852697,-544.31,0.00013698,2]
[404377945,1770085852706,-544.31,0.00013698,2]
[404377946,1770085852715,-544.31,0.00013698,2]
[404377947,1770085852725,-544.47652437,0.00013698,2]
[404377948,1770085852734,-157.766732,0.00013698,2]
[404377949,1770085852743,-665.72,0.00013698,2]
[404377950,1770085852752,-665.72,0.00013698,2]
[404377951,1770085852762,-665.72,0.00013698,2]
[404377952,1770085852771,-665.72,0.00013698,2]
[404377953,1770085852780,-665.72,0.00013698,2]
[404377954,1770085852790,-665.72,0.00013698,2]
[404377955,1770085852800,-665.72,0.00013698,2]
[404377956,1770085852810,-665.72,0.00013698,2]
[404377957,1770085852820,-665.72,0.00013698,2]
[404377958,1770085852829,-272.58,0.00013699,2]
[404377959,1770085852838,-227.15,0.00013699,2]
[404377960,1770085852847,-189.29,0.00013699,2]
[404377961,1770085852857,-157.75,0.00013699,2]
[404377962,1770085852867,-788.75,0.00013699,2]
[404377963,1770085852878,-200.0,0.00013699,2]
[404377964,1770085852888,-151.0,0.00013699,2]
[404377965,1770085852899,-151.0,0.00013699,2]
[404377966,1770085852909,-151.0,0.00013699,2]
[404377967,1770085852920,-500.87599875,0.00013699,2]
[404377968,1770085852930,-500.64906369,0.00013699,2]
[404377969,1770085852939,-163.3987975,0.00013699,2]
[404377970,1770085852948,-500.0,0.00013699,2]
[404377971,1770085852958,-500.0,0.00013699,2]
[404377972,1770085852967,-464.55637518,0.00013699,2]
[404377973,1770085852976,-500.5484423,0.00013699,2]
[404377974,1770085852985,-500.0,0.00013699,2]
[404377975,1770085852994,-500.0,0.00013699,2]
[404377976,1770085853004,-163.17509368,0.00013699,2]
[404377977,1770085853013,-500.0,0.00013699,2]
[404377978,1770085853023,-500.0,0.00013699,2]
[404377979,1770085853032,-500.0,0.00013699,2]
[404377980,1770085853043,-336.54043912,0.00013699,2]
[404377981,1770085853052,-160.59346799,0.00013699,2]
[404377982,1770085853062,-161.50529387,0.00013699,2]
[404377983,1770085853071,-500.0,0.00013699,2]
[404377984,1770085853081,-151.14630637,0.00013699,2]
[404377985,1770085853091,-500.86578537,0.00013699,2]
[404377986,1770085853101,-500.58962074,0.00013699,2]
[404377987,1770085853291,-500.0,0.00013699,2]
[404377988,1770085853305,-163.51025142,0.00013699,2]
[404377989,1770085853315,-500.0,0.00013699,2]
[404377990,1770085853325,-500.0,0.00013699,2]
[404377991,1770085853335,-500.81916532,0.00013699,2]
[404377992,1770085853346,-340.20370382,0.00013699,2]
[404377993,1770085853356,-500.0,0.00013699,2]
[404377994,1770085853365,-500.0,0.00013699,2]
[404377995,1770085853375,-500.0,0.00013699,2]
[404377996,1770085853385,-500.0,0.00013699,2]
[404377997,1770085853395,-500.0,0.00013699,2]
[404377998,1770085853404,-200.90009189,0.00013699,2]
[404377999,1770085853414,-513.10579146,0.00013699,2]
[404378000,1770085853423,-500.0,0.00013699,2]
[404378001,1770085853433,-500.0,0.00013699,2]
[404378002,1770085853442,-500.0,0.00013699,2]
[404378003,1770085853451,-574.23426671,0.00013699,2]
[404378004,1770085853461,-500.0,0.00013699,2]
[404378005,1770085853470,-500.0,0.00013699,2]
[404378006,1770085853480,-500.0,0.00013699,2]
[404378007,1770085853489,-500.27732573,0.00013699,2]
[404378008,1770085853498,-500.0,0.00013699,2]
[404378009,1770085853508,-500.23723554,0.00013699,2]
[404378010,1770085853517,-500.0,0.00013699,2]
[404378011,1770085853527,-500.0,0.00013699,2]
[404378012,1770085853536,-559.8488152,0.00013699,2]
[404378013,1770085853545,-500.0,0.00013699,2]
[404378014,1770085853555,-500.93680817,0.00013699,2]
[404378015,1770085853564,-460.43591281,0.00013699,2]
[404378016,1770085853574,-160.66040125,0.00013699,2]
[404378017,1770085853583,-500.35331747,0.00013699,2]
[404378018,1770085853592,-565.28889889,0.00013699,2]
[404378019,1770085853602,-500.0,0.00013699,2]
[404378020,1770085853612,-500.0,0.00013699,2]
[404378021,1770085853621,-558.68376736,0.00013699,2]
[404378022,1770085853630,-500.0,0.00013699,2]
[404378023,1770085853640,-500.0,0.00013699,2]
[404378024,1770085853650,-500.0,0.00013699,2]
[404378025,1770085853659,-168.06766259,0.00013699,2]
[404378026,1770085853668,-500.0,0.00013699,2]
[404378027,1770085853678,-522.46720668,0.00013699,2]
[404378028,1770085853687,-500.0,0.00013699,2]
[404378029,1770085853696,-500.0,0.00013699,2]
[404378030,1770085853705,-500.5919293,0.00013699,2]
[404378031,1770085853715,-500.0,0.00013699,2]
[404378032,1770085853724,-185.58842185,0.00013699,2]
[404378033,1770085853734,-500.0,0.00013699,2]
[404378034,1770085853743,-500.0,0.00013699,2]
[404378035,1770085853753,-550.30933962,0.00013699,2]
[404378036,1770085853763,-500.32227363,0.00013699,2]
[404378037,1770085853772,-500.0,0.00013699,2]
[404378038,1770085853782,-500.0,0.00013699,2]
[404378039,1770085853792,-500.0,0.00013699,2]
[404378040,1770085853801,-486.39586711,0.00013699,2]
[404378041,1770085853810,-500.0,0.00013699,2]
[404378042,1770085853820,-593.67705191,0.00013699,2]
[404378043,1770085853830,-500.0,0.00013699,2]
[404378044,1770085853840,-500.0,0.00013699,2]
[404378045,1770085853849,-3529.0,0.00013699,2]
[404378046,1770085853858,-1448.54,0.00013699,2]
[404378047,1770085853868,-334.5472959,0.00013722,2]
[404378048,1770085853878,-1329.7,0.00013825,2]
[404378049,1770085853887,-500.0,0.00013836,2]
[404378050,1770085853896,-200.0,0.00013836,2]
[404378051,1770085853907,-5069.20668408,0.00013901,2]
[404378052,1770085853915,-4000.0,0.0001391,2]
[404378053,1770085853926,-506.61875373,0.0001391,2]
[404378054,1770085853935,-150.0,0.00013925,2]
[404378055,1770085853944,-194.72792766,0.00013997,2]
[404378056,1770085853954,-151.0,0.00013997,2]
[404378057,1770085853963,-1592.87721993,0.00013997,2]
[404378058,1770085853972,-233.51889341,0.00013997,2]
[404378059,1770085853981,-150.00796355,0.00014036,2]
[404378060,1770085853991,-500.0,0.00014043,2]
[404378061,1770085853999,-1329.7,0.00014099,2]
[404378062,1770085854008,-44956.68910458,0.00014156,2]
[404378063,1770085854017,-500.0,0.00014164,2]
[404378064,1770085854027,-1000.0,0.00014247,2]
[404378065,1770085854038,-495.58901991,0.00014247,2]
[404378066,1770085854047,-500.7588569,0.00014247,2]
[404378067,1770085854058,-1000.0,0.00014247,2]
[404378068,1770085854068,-500.61825872,0.00014247,2]
[404378069,1770085854078,-1000.0,0.00014247,2]
[404378070,1770085854088,-1000.0,0.00014247,2]
[404378071,1770085854098,-1000.0,0.00014247,2]
[404378072,1770085854107,-1000.0,0.00014247,2]
[404378073,1770085854117,-1000.0,0.00014247,2]
[404378074,1770085854126,-487.32196984,0.00014247,2]
[404378075,1770085854137,-1000.0,0.00014247,2]
[404378076,1770085854147,-335.67208162,0.00014247,2]
[404378077,1770085854157,-1138.52784923,0.00014247,2]
[404378078,1770085854167,-505.3656764,0.00014247,2]
[404378079,1770085854176,-1000.0,0.00014247,2]
[404378080,1770085854186,-501.07018625,0.00014247,2]
[404378081,1770085854195,-1000.0,0.00014247,2]
[404378082,1770085854204,-502.73500783,0.00014247,2]
[404378083,1770085854214,-1000.0,0.00014247,2]
[404378084,1770085854227,-1000.0,0.00014247,2]
[404378085,1770085854237,-1000.0,0.00014247,2]
[404378086,1770085854246,-1000.0,0.00014247,2]
[404378087,1770085854256,-1000.0,0.00014247,2]
[404378088,1770085854266,-1000.0,0.00014247,2]
[404378089,1770085854276,-1000.0,0.00014247,2]
[404378090,1770085854286,-1000.0,0.00014247,2]
[404378091,1770085854297,-1000.0,0.00014247,2]
[404378092,1770085854308,-1000.0,0.00014247,2]
[404378093,1770085854318,-1000.0,0.00014247,2]
[404378094,1770085854327,-1000.0,0.00014247,2]
[404378095,1770085854336,-1000.0,0.00014247,2]
[404378096,1770085854346,-1001.09816726,0.00014247,2]
[404378097,1770085854355,-1000.0,0.00014247,2]
[404378098,1770085854364,-1000.0,0.00014247,2]
[404378099,1770085854374,-1000.0,0.00014247,2]
[404378100,1770085854383,-501.74698965,0.00014247,2]
[404378101,1770085854392,-1000.0,0.00014247,2]
[404378102,1770085854401,-1001.21553048,0.00014247,2]
[404378103,1770085854411,-1000.0,0.00014247,2]
[404378104,1770085854420,-1000.0,0.00014247,2]
[404378105,1770085854430,-1000.0,0.00014247,2]
[404378106,1770085854440,-1000.0,0.00014247,2]
[404378107,1770085854450,-1329.7,0.00014373,2]
[404378108,1770085854459,-500.0,0.00014384,2]
[404378109,1770085854468,-200.0,0.00014384,2]
[404378110,1770085854478,-10332.61714049,0.0001439,2]
[404378111,1770085854487,-319.83,0.00014451,2]
[404378112,1770085854496,-4500.0,0.00014458,2]
[404378113,1770085854505,-300.47840846,0.00014473,2]
[404378114,1770085854515,-1002.64005393,0.00014515,2]
[404378115,1770085854524,-201.93286099,0.00014545,2]
[404378116,1770085854533,-151.0,0.00014545,2]
[404378117,1770085854543,-1651.81367706,0.00014545,2]
[404378118,1770085854552,-242.15909246,0.00014545,2]
[404378119,1770085854561,-6453.0,0.00014601,2]
[404378120,1770085854570,-1613.0,0.00014601,2]
[404378121,1770085854579,-2129.0,0.00014606,2]
[404378122,1770085854588,-1329.7,0.00014647,2]
[404378123,1770085854597,-1195.04776417,0.00014795,2]
[404378124,1770085854606,-1503.56631352,0.00014795,2]
[404378125,1770085854615,-465.16495418,0.00014795,2]
[404378126,1770085854625,-369.98194845,0.00014795,2]
[404378127,1770085854636,-1501.8823271,0.00014795,2]
[404378128,1770085854645,-631.42408239,0.00014795,2]
[404378129,1770085854655,-501.01495544,0.00014795,2]
[404378130,1770085854664,-1502.23725498,0.00014795,2]
[404378131,1770085854673,-1501.46388009,0.00014795,2]
[404378132,1770085854683,-1451.590897,0.00014795,2]
[404378133,1770085854692,-871.81162767,0.00014795,2]
[404378134,1770085854701,-1502.21786778,0.00014795,2]
[404378135,1770085854710,-1137.40575138,0.00014795,2]
[404378136,1770085854720,-1502.22580949,0.00014795,2]
[404378137,1770085854731,-501.24999677,0.00014795,2]
[404378138,1770085854740,-1503.63340885,0.00014795,2]
[404378139,1770085854751,-1500.0,0.00014795,2]
[404378140,1770085854760,-1500.0,0.00014795,2]
[404378141,1770085854770,-525.83341626,0.00014795,2]
[404378142,1770085854780,-1221.97965505,0.00014795,2]
[404378143,1770085854789,-1505.8521348,0.00014795,2]
[404378144,1770085854798,-1484.36146112,0.00014795,2]
[404378145,1770085854809,-433.76362311,0.00014795,2]
[404378146,1770085854818,-501.14950121,0.00014795,2]
[404378147,1770085854828,-1503.93923178,0.00014795,2]
[404378148,1770085854837,-1500.0,0.00014795,2]
[404378149,1770085854846,-504.40745995,0.00014795,2]
[404378150,1770085854856,-1500.0,0.00014795,2]
[404378151,1770085854865,-502.08003751,0.00014795,2]
[404378152,1770085854874,-386.62164618,0.00014795,2]
[404378153,1770085854883,-179.650583,0.000149,2]
[404378154,1770085854892,-5478.0,0.000149,3]
[404378155,1770085854901,-1329.7,0.00014921,2]
[404378156,1770085854910,-500.0,0.00014932,2]
[404378157,1770085854919,-202.52521576,0.00014932,2]
[404378158,1770085854928,-180.55756402,0.00014997,2]
[404378159,1770085854936,-2051.98803165,0.00015,2]
[404378160,1770085854945,-2141.537179,0.00015,14]
[404378161,1770085854954,-7988.62760331,0.00015,2]
[404378162,1770085854963,-206723.90392175,0.00015,3]
[404378163,1770085854972,-359.46618133,0.00015006,2]
[404378164,1770085854981,-773.4,0.00015068,2]
[404378165,1770085854990,-900.0,0.00015068,2]
[404378166,1770085854999,-862.364881,0.00015068,2]
[404378167,1770085855010,-862.364881,0.00015068,2]
[404378168,1770085855019,-862.364881,0.00015068,2]
[404378169,1770085855028,-862.364881,0.00015068,2]
[404378170,1770085855037,-346.92554585,0.00015091,2]
[404378171,1770085855046,-747.8093786,0.00015092,2]
[404378172,1770085855055,-599.60298507,0.00015092,2]
[404378173,1770085855064,-209.40437684,0.00015093,2]
[404378174,1770085855073,-233.06558191,0.00015093,2]
[404378175,1770085855083,-1712.93078312,0.00015093,2]
[404378176,1770085855091,-251.11897888,0.00015093,2]
[404378177,1770085855100,-5069.20668408,0.00015126,2]
[404378178,1770085855109,-18990.081,0.00015134,2]
[404378179,1770085855118,-1329.7,0.00015195,2]
[404378180,1770085855127,-773.4,0.00015342,2]
[404378181,1770085855136,-2000.0,0.00015342,2]
[404378182,1770085855146,-911.02359393,0.00015342,2]
[404378183,1770085855155,-150.00796355,0.00015382,2]
[404378184,1770085855163,-5531.0,0.000154,5]
[404378185,1770085855172,-1329.7,0.00015468,2]
[404378186,1770085855182,-500.0,0.0001548,2]
[404378187,1770085855191,-217.15233878,0.00015641,2]
[404378188,1770085855201,-1776.30922209,0.00015641,2]
[404378189,1770085855211,-260.4103811,0.00015641,2]
[404378190,1770085855224,-151.0,0.00015641,2]
[404378191,1770085855235,-151.0,0.00015641,2]
[404378192,1770085855244,-151.0,0.00015641,2]
[404378193,1770085855253,-151.0,0.00015641,2]
[404378194,1770085855264,-1329.7,0.00015742,2]
[404378195,1770085855272,-284.72836365,0.00015764,2]
[404378196,1770085855282,-2500.0,0.0001589,2]
[404378197,1770085855292,-500.0,0.00015911,2]
[404378198,1770085855302,-1000.0,0.00015918,2]
[404378199,1770085855311,-500.0,0.00015973,2]
[404378200,1770085855320,-1692692.53633559,0.00016,4]
[404378201,1770085855331,-150.32725344,0.00016,2]
[404378202,1770085855340,-1329.7,0.00016016,2]
[404378203,1770085855350,-500.0,0.00016028,2]
[404378204,1770085855359,-9035.0,0.00016061,2]
[404378205,1770085855368,-2258.0,0.00016061,2]
[404378206,1770085855377,-1243.0,0.00016065,2]
[404378207,1770085855386,-9999.99,0.00016116,2]
[404378208,1770085855395,-225.18697532,0.00016189,2]
[404378209,1770085855405,-1842.03266331,0.00016189,2]
[404378210,1770085855414,-270.0455652,0.00016189,2]
[404378211,1770085855423,-150.0,0.000162,2]
[404378212,1770085855433,-445200.75719764,0.000162,5]
[404378213,1770085855442,-150.0,0.00016222,2]
[404378214,1770085855451,-150.0,0.00016244,2]
[404378215,1770085855460,-150.0,0.00016266,2]
[404378216,1770085855470,-150.0,0.00016288,2]
[404378217,1770085855479,-1329.81729944,0.0001629,2]
[404378218,1770085855488,-213.22,0.00016309,2]
[404378219,1770085855498,-150.0,0.0001631,2]
[404378220,1770085855507,-150.0,0.00016332,2]
[404378221,1770085855516,-200.0,0.0001634,2]
[404378222,1770085855525,-5069.20668408,0.00016352,2]
[404378223,1770085855534,-150.0,0.00016354,2]
[404378224,1770085855543,-213.22,0.00016375,2]
[404378225,1770085855552,-150.0,0.00016376,2]
[404378226,1770085855561,-150.0,0.00016398,2]
[404378227,1770085855570,-150.0,0.0001642,2]
[404378228,1770085855579,-500.0,0.00016421,2]
[404378229,1770085855587,-867.36,0.00016421,2]
[404378230,1770085855596,-691.89,0.00016421,2]
[404378231,1770085855605,-500.0,0.00016421,2]
[404378232,1770085855616,-1668.87,0.00016421,2]
[404378233,1770085855626,-691.95,0.00016421,2]
[404378234,1770085855635,-609.96,0.00016421,2]
[404378235,1770085855644,-505.36940951,0.00016421,2]
[404378236,1770085855655,-500.0,0.00016421,2]
[404378237,1770085855666,-703.16,0.00016421,2]
[404378238,1770085855676,-185.817131,0.00016421,2]
[404378239,1770085855686,-185.817131,0.00016421,2]
[404378240,1770085855696,-185.817131,0.00016421,2]
[404378241,1770085855708,-185.817131,0.00016421,2]
[404378242,1770085855718,-500.0,0.00016421,2]
[404378243,1770085855729,-160.793991,0.00016421,2]
[404378244,1770085855740,-2115.629647,0.00016421,2]
[404378245,1770085855749,-160.793991,0.00016421,2]
[404378246,1770085855759,-2115.629647,0.00016421,2]
[404378247,1770085855768,-719.521851,0.00016421,2]
[404378248,1770085855777,-2115.629647,0.00016421,2]
[404378249,1770085855786,-160.793991,0.00016421,2]
[404378250,1770085855795,-719.521851,0.00016421,2]
[404378251,1770085855805,-2115.629647,0.00016421,2]
[404378252,1770085855814,-160.793991,0.00016421,2]
[404378253,1770085855823,-719.521851,0.00016421,2]
[404378254,1770085855832,-719.521851,0.00016421,2]
[404378255,1770085855841,-150414.8,0.00016421,2]
[404378256,1770085855851,-159.65710457,0.00016434,2]
[404378257,1770085855859,-2000.0,0.00016438,2]
[404378258,1770085855868,-862.364881,0.00016438,2]
[404378259,1770085855877,-862.364881,0.00016438,2]
[404378260,1770085855886,-862.364881,0.00016438,2]
[404378261,1770085855896,-862.364881,0.00016438,2]
[404378262,1770085855907,-151.0,0.00016438,2]
[404378263,1770085855917,-151.0,0.00016438,2]
[404378264,1770085855926,-151.0,0.00016438,2]
[404378265,1770085855937,-500.0,0.00016438,2]
[404378266,1770085855947,-500.0,0.00016438,2]
[404378267,1770085855956,-500.0,0.00016438,2]
[404378268,1770085855966,-500.0,0.00016438,2]
[404378269,1770085855977,-311.4837832,0.00016438,2]
[404378270,1770085855986,-2230.71745003,0.00016438,2]
[404378271,1770085855996,-2230.71745003,0.00016438,2]
[404378272,1770085856006,-2230.71745003,0.00016438,2]
[404378273,1770085856015,-2230.71745003,0.00016438,2]
[404378274,1770085856024,-2230.71745003,0.00016438,2]
[404378275,1770085856033,-2230.71745003,0.00016438,2]
[404378276,1770085856041,-2230.71745003,0.00016438,2]
[404378277,1770085856051,-2230.71745003,0.00016438,2]
[404378278,1770085856060,-2230.71745003,0.00016438,2]
[404378279,1770085856070,-2230.71745003,0.00016438,2]
[404378280,1770085856080,-2230.71745003,0.00016438,2]
[404378281,1770085856089,-2230.71745003,0.00016438,2]
[404378282,1770085856098,-2230.71745003,0.00016438,2]
[404378283,1770085856107,-2230.71745003,0.00016438,2]
[404378284,1770085856117,-2230.71745003,0.00016438,2]
[404378285,1770085856126,-2230.71745003,0.00016438,2]
[404378286,1770085856135,-2230.71745003,0.00016438,2]
[404378287,1770085856146,-2230.71745003,0.00016438,2]
[404378288,1770085856155,-2230.71745003,0.00016438,2]
[404378289,1770085856164,-2230.71745003,0.00016438,2]
[404378290,1770085856173,-2230.71745003,0.00016438,2]
[404378291,1770085856182,-2230.71745003,0.00016438,2]
[404378292,1770085856191,-2230.71745003,0.00016438,2]
[404378293,1770085856200,-2230.71745003,0.00016438,2]
[404378294,1770085856209,-2230.71745003,0.00016438,2]
[404378295,1770085856219,-2230.71745003,0.00016438,2]
[404378296,1770085856231,-2230.71745003,0.00016438,2]
[404378297,1770085856240,-2230.71745003,0.00016438,2]
[404378298,1770085856249,-2230.71745003,0.00016438,2]
[404378299,1770085856263,-2230.71745003,0.00016438,2]
[404378300,1770085856272,-2230.71745003,0.00016438,2]
[404378301,1770085856282,-2230.71745003,0.00016438,2]
[404378302,1770085856293,-2230.71745003,0.00016438,2]
[404378303,1770085856304,-2230.71745003,0.00016438,2]
[404378304,1770085856314,-2230.71745003,0.00016438,2]
[404378305,1770085856323,-2230.71745003,0.00016438,2]
[404378306,1770085856333,-2230.71745003,0.00016438,2]
[404378307,1770085856343,-2230.71745003,0.00016438,2]
[404378308,1770085856353,-2230.71745003,0.00016438,2]
[404378309,1770085856363,-2230.71745003,0.00016438,2]
[404378310,1770085856372,-2230.71745003,0.00016438,2]
[404378311,1770085856382,-2230.71745003,0.00016438,2]
[404378312,1770085856391,-2230.71745003,0.00016438,2]
[404378313,1770085856401,-2230.71745003,0.00016438,2]
[404378314,1770085856410,-2230.71745003,0.00016438,2]
[404378315,1770085856419,-2230.71745003,0.00016438,2]
[404378316,1770085856429,-2230.71745003,0.00016438,2]
[404378317,1770085856438,-2230.71745003,0.00016438,2]
[404378318,1770085856448,-2230.71745003,0.00016438,2]
[404378319,1770085856458,-2230.71745003,0.00016438,2]
[404378320,1770085856468,-2230.71745003,0.00016438,2]
[404378321,1770085856478,-2230.71745003,0.00016438,2]
[404378322,1770085856489,-2230.71745003,0.00016438,2]
[404378323,1770085856499,-2230.71745003,0.00016438,2]
[404378324,1770085856508,-2230.71745003,0.00016438,2]
[404378325,1770085856519,-2230.71745003,0.00016438,2]
[404378326,1770085856530,-2215.33319175,0.00016438,2]
[404378327,1770085856538,-2215.33319175,0.00016438,2]
[404378328,1770085856549,-2215.33319175,0.00016438,2]
[404378329,1770085856559,-2215.33319175,0.00016438,2]
[404378330,1770085856567,-2215.33319175,0.00016438,2]
[404378331,1770085856576,-2215.33319175,0.00016438,2]
[404378332,1770085856587,-2215.33319175,0.00016438,2]
[404378333,1770085856595,-2215.33319175,0.00016438,2]
[404378334,1770085856604,-2215.33319175,0.00016438,2]
[404378335,1770085856613,-2215.33319175,0.00016438,2]
[404378336,1770085856623,-2215.33319175,0.00016438,2]
[404378337,1770085856636,-2215.33319175,0.00016438,2]
[404378338,1770085856645,-2215.33319175,0.00016438,2]
[404378339,1770085856654,-2215.33319175,0.00016438,2]
[404378340,1770085856663,-2215.33319175,0.00016438,2]
[404378341,1770085856672,-2215.33319175,0.00016438,2]
[404378342,1770085856681,-2215.33319175,0.00016438,2]
[404378343,1770085856690,-2215.33319175,0.00016438,2]
[404378344,1770085856701,-2215.33319175,0.00016438,2]
[404378345,1770085856710,-2215.33319175,0.00016438,2]
[404378346,1770085856719,-2215.33319175,0.00016438,2]
[404378347,1770085856729,-2215.33319175,0.00016438,2]
[404378348,1770085856738,-2215.33319175,0.00016438,2]
[404378349,1770085856748,-2215.33319175,0.00016438,2]
[404378350,1770085856962,-2215.33319175,0.00016438,2]
[404378351,1770085856972,-2215.33319175,0.00016438,2]
[404378352,1770085856984,-2215.33319175,0.00016438,2]
[404378353,1770085856995,-2215.33319175,0.00016438,2]
[404378354,1770085857005,-2215.33319175,0.00016438,2]
[404378355,1770085857017,-2215.33319175,0.00016438,2]
[404378356,1770085857027,-2215.33319175,0.00016438,2]
[404378357,1770085857038,-2215.33319175,0.00016438,2]
[404378358,1770085857047,-2215.33319175,0.00016438,2]
[404378359,1770085857057,-2215.33319175,0.00016438,2]
[404378360,1770085857066,-2215.33319175,0.00016438,2]
[404378361,1770085857076,-227.27,0.00016438,2]
[404378362,1770085857085,-150.38423359,0.00016438,2]
[404378363,1770085857096,-900.0,0.00016438,2]
[404378364,1770085857107,-645.714246,0.00016438,2]
[404378365,1770085857117,-645.714246,0.00016438,2]
[404378366,1770085857125,-645.714246,0.00016438,2]
[404378367,1770085857134,-645.714246,0.00016438,2]
[404378368,1770085857143,-645.714246,0.00016438,2]
[404378369,1770085857153,-645.714246,0.00016438,2]
[404378370,1770085857165,-645.714246,0.00016438,2]
[404378371,1770085857173,-645.714246,0.00016438,2]
[404378372,1770085857183,-211.477693,0.00016438,2]
[404378373,1770085857192,-211.477693,0.00016438,2]
[404378374,1770085857201,-211.477693,0.00016438,2]
[404378375,1770085857212,-211.477693,0.00016438,2]
[404378376,1770085857227,-211.477693,0.00016438,2]
[404378377,1770085857236,-211.477693,0.00016438,2]
[404378378,1770085857246,-211.477693,0.00016438,2]
[404378379,1770085857256,-211.477693,0.00016438,2]
[404378380,1770085857268,-800.0,0.00016438,2]
[404378381,1770085857278,-151.0,0.00016438,2]
[404378382,1770085857287,-151.0,0.00016438,2]
[404378383,1770085857297,-151.0,0.00016438,2]
[404378384,1770085857307,-151.0,0.00016438,2]
[404378385,1770085857316,-151.0,0.00016438,2]
[404378386,1770085857325,-151.0,0.00016438,2]
[404378387,1770085857335,-1181.76582576,0.00016438,2]
[404378388,1770085857344,-213.22,0.00016441,2]
[404378389,1770085857353,-150.0,0.00016441,2]
[404378390,1770085857363,-1725.90149928,0.00016444,2]
[404378391,1770085857373,-359.76179104,0.0001646,2]
[404378392,1770085857383,-150.0,0.00016463,2]
[404378393,1770085857397,-150.0,0.00016485,2]
[404378394,1770085857406,-150.0,0.00016507,2]
[404378395,1770085857415,-1000.0,0.00016515,2]
[404378396,1770085857426,-150.0,0.00016529,2]
[404378397,1770085857444,-200.05997466,0.00016547,2]
[404378398,1770085857463,-150.0,0.00016551,2]
[404378399,1770085857473,-150.0,0.00016573,2]
[404378400,1770085857485,-500.0,0.00016576,2]
[404378401,1770085857503,-150.0,0.00016595,2]
[404378402,1770085857516,-360.83984207,0.000166,2]
[404378403,1770085857526,-150.0,0.00016617,2]
[404378404,1770085857535,-422.76025041,0.00016628,2]
[404378405,1770085857545,-150.0,0.00016639,2]
[404378406,1770085857555,-16788.91059816,0.00016659,2]
[404378407,1770085857564,-150.0,0.00016661,2]
[404378408,1770085857574,-150.0,0.00016683,2]
[404378409,1770085857592,-150.0,0.00016705,2]
[404378410,1770085857603,-165.83,0.00016712,2]
[404378411,1770085857613,-150.0,0.00016727,2]
[404378412,1770085857623,-150.00796355,0.00016727,2]
[404378413,1770085857632,-233.51889341,0.00016737,2]
[404378414,1770085857642,-1910.18787185,0.00016737,2]
[404378415,1770085857651,-294.20768578,0.00016737,2]
[404378416,1770085857660,-150.0,0.00016749,2]
[404378417,1770085857670,-150.0,0.00016771,2]
[404378418,1770085857679,-150.0,0.00016793,2]
[404378419,1770085857689,-1000.0,0.000168,2]